Workbook

Sheet Storage Tank
A1: Thermal Storage Tank Size Computation
A3: 3 tons of energy | B3: 10543.5 | C3: Watts | D3: Note: These are known values; therefore, they do not change.
A4: Require Usage Time | B4: 12 | C4: hr
A5: Required stored energy | B5: 455784.192 | C5: KJ
A6: Storage Tank Water Initial Temperature | B6: 20 | C6: C
A7: Specific Heat of Water | B7: =Properties!F2 -> 4.2 | C7: KJ/kgK
A8: Required Heat Transfer to cool the water from 20 to 0 degrees celcius | B8: =B9*B7*B6 -> 114731.4118 | C8: KJ
A9: Required Mass of Ice | B9: =B5/Properties!B2 -> 1365.850141 | C9: Kg
A10: Volume of ice | B10: =B9/Properties!B3 -> 1.489476708 | C10: m^3
A11: Required energy to convert water to ice @ 0 degrees celcius | B11: =B9*Properties!B2 -> 455784.192 | C11: KJ
A12: Total heat transfer to transform water to ice starting at 20 degrees celcius | B12: =B8+B11 -> 570515.6038 | C12: KJ
A13: Maximum Time available for freezing the whole volume of ice | B13: =6.5*24 -> 156 | C13: hrs
A15: Velocity glycol in intial coil before separation | B15: 3 | C15: m/s | D15: Note: Green cells are input values
A16: Surface Temperature on the coils 1st state | B16: 290.3911994 | C16: K | D16: Note: Usegoalseek on cell B 77 and set it to zero in order to calculate the surface temperature
A17: Surface Temperature on the coils 2nd state | B17: 286.7060838 | C17: K | D17: Note: Usegoalseek on cell B 78 and set it to zero in order to calculate the surface temperature
A18: Surface Temperature on the coils 3rd state | B18: 276.4907105 | C18: K | D18: Note: Usegoalseek on cell B 79 and set it to zero in order to calculate the surface temperature
A19: Surface Temperatue on the coils Final state | B19: 271.8883364 | C19: K | D19: Note: Usegoalseek on cell B 80 and set it to zero in order to calculate the surface temperature
A20: Diameter of initial coil before separation | B20: 0.05 | C20: m
A21: Diameter of coils after separation | B21: 0.024 | C21: m
A22: Length of coils | B22: 13 | C22: m
A23: Number of Coils | B23: 32
A24: Tank Length | B24: 1.2 | C24: m
A25: Surface Area of one coil after separation | B25: =((3.1416*B21)*B22) -> 0.9801792 | C25: m^2
A26: Total surface area off all coils | B26: =B23*B25 -> 31.3657344 | C26: m^2
A27: Area of one coil after separation | B27: =((3.1416)*((B21)^2))/4 -> 0.0004523904 | C27: m^2
A28: Area of all coils after separation | B28: =B23*B27 -> 0.0144764928 | C28: m^2
A29: Volume of all coils after separation | B29: =B28*B22 -> 0.1881944064 | C29: m^3
A30: Area of initial coil before separation | B30: =((3.1416)*B20^2)/4 -> 0.0019635 | C30: m^2
A31: Mass flow rate glycol in initial coil before separation | B31: =B15*B30*Properties!J3 -> 6.5325645 | C31: kg/s
A32: Volume flow rate glycol in initial coil before separation | B32: =B30*B15 -> 0.0058905 | C32: m^3/s
A33: Minumum power required in order to freeze all the water in the specified amount of time | B33: =((B12/B13)/3600)*1000 -> 1015.875363 | C33: w
A34: Temperature @ which glycol is entering the tank | B34: =-10+273 -> 263 | C34: K
A35: Temperature of water @ initial state | B35: =20+273 -> 293 | C35: K
A36: Temperature of water @ final state | B36: 273 | C36: K
A37: Film Temperature on water side @ initial state | B37: =(B16+B35)/2 -> 291.6955997 | C37: K
A38: Ra of Water at initial state | B38: =ABS((((((9.81)*((Properties!F$8))*(('Storage Tank'!B$16)-('Storage Tank'!B$35))*(('Storage Tank'!B$21)^3))/((Properties!F$9/999.1)^2)))*(Properties!F$7))) -> 304442.0415 | C38: =IF(B38<1*10^12,"Ra number is correct","Ra number is incorrect") -> Ra number is correct
A39: Nusselt Number after calculating Ra | B39: =((0.6+((0.387*(B38^(1/6)))/((1+(0.559/Properties!F7)^(9/16))^(8/27))))^2) -> 12.89367784
A40: Heat transfer coefficient for initial state on the outside (Water side) | B40: =(Properties!F10/'Storage Tank'!B21)*'Storage Tank'!B39 -> 316.4323436 | C40: w/m^2 k
A41: Temperature of water @ second state | B41: =15+273 -> 288 | C41: K
A42: Film Temperature of water second state | B42: =(B41+B17)/2 -> 287.3530419
A43: Ra of water at second state | B43: =ABS((((((9.81)*((Properties!F$4))*(('Storage Tank'!B$17)-('Storage Tank'!B$41))*(('Storage Tank'!B$21)^3))/((Properties!F$5/999.1)^2)))*(Properties!F$3))) -> 710250.2462 | C43: =IF(B43<1*10^12,"Ra number is correct","Ra number is incorrect") -> Ra number is correct
A44: Nusselt Number after calculating Ra 2nd phase | B44: =((0.6+((0.387*(B43^(1/6)))/((1+(0.559/Properties!F3)^(9/16))^(8/27))))^2) -> 16.48362665
A45: Heat transfer coefficient for second state on the outside (water side) | B45: =(Properties!F6/'Storage Tank'!B21)*'Storage Tank'!B44 -> 398.3543107 | C45: w/m^2 k
A46: Temperature of water @ third state | B46: =5+273 -> 278 | C46: K
A47: Film Temperature of water third state | B47: =(B46+B18)/2 -> 277.2453553 | C47: K
A48: Ra number of water at third state | B48: =ABS((((((9.81)*((Properties!F$12))*(('Storage Tank'!B$18)-('Storage Tank'!B$46))*(('Storage Tank'!B$21)^3))/((Properties!F$13/999.1)^2)))*(Properties!F$11))) -> 14876.02618 | C48: =IF(B48<1*10^12,"Ra number is correct","Ra number is incorrect") -> Ra number is correct
A49: Nusselt Number after calculating Ra 3rd state | B49: =((0.6+((0.387*(B48^(1/6)))/((1+(0.559/Properties!F11)^(9/16))^(8/27))))^2) -> 5.880504501
A50: Heat transfer coefficient for third state on the outside (water side) | B50: =(Properties!F14/'Storage Tank'!B21)*B49 -> 139.9070029 | C50: w/m^2 k
A51: Temperature of water @ final state | B51: =B36 -> 273 | C51: K
A52: Film Temperature of water final state | B52: =(B51+B19)/2 -> 272.4441682 | C52: K
A53: Ra number of water at Final state | B53: =ABS((((((9.81)*((Properties!F$16))*(('Storage Tank'!B$19)-('Storage Tank'!B$51))*(('Storage Tank'!B$21)^3))/((Properties!F$17/999.1)^2)))*(Properties!F$15))) -> 43019.04093
A54: Nusselt Number after calculating Ra Final State | B54: =((0.6+((0.387*(B53^(1/6)))/((1+(0.559/Properties!F15)^(9/16))^(8/27))))^2) -> 7.77556945
A55: Heat transfer coeffient for Final state on the outside (Water side) | B55: =(Properties!F18/'Storage Tank'!B21)*B54 -> 181.7539359 | C55: w/m^2 k
A57: Glycol entering temperature | B57: =B34 -> 263 | C57: K
A58: Nusselt Number of glycol inside coils | B58: =IF(B271<2300,3.66,(((B287/8)*(B271-1000))*(Properties!J$5))/(1+(12.7*(('Storage Tank'!B287/8)^0.5)*((Properties!J$5)^(2/3)-1)))) -> 3.66 | D58: Note: This will change depending if it is laminar or turbulent. For laminar is 3.66 but for turbulent it will change
A59: Heat transfer coefficient inside coils | B59: =(Properties!J6/'Storage Tank'!B21)*('Storage Tank'!B58) -> 36.905 | C59: w/m^2 k
A60: Overall Heat transfer coefficient initial state | B60: =(1/((1/B59)+(1/B40))) -> 33.05038613 | C60: w/m^2 k
A61: Overall Heat transfer coefficient Second state | B61: =(1/((1/B59)+(1/B45))) -> 33.77587906 | C61: w/m^2 k
A62: Overall Heat transfer coefficient Third state | B62: =(1/((1/B59)+(1/B50))) -> 29.20202168 | C62: w/m^2 k
A63: Overall Heat transfer coefficient Final state | B63: =(1/((1/B59)+(1/B55))) -> 30.67621717 | C63: w/m^2 k
A65: Exit Temperature of Glycol initial state | B65: =(B16-((B16-B57)*EXP((-B60*B25)/(B321*Properties!J2)))) -> 264.8307589 | C65: K
A66: Exit Temperature of Glycol Second state | B66: =(B17-((B17-B57)*EXP((-B61*B25)/(B321*Properties!J2)))) -> 264.618021 | C66: K
A67: Exit Temperature of Glycol Third state | B67: =(B18-((B18-B57)*EXP((-B62*B25)/(B321*Properties!J2)))) -> 263.7998737 | C67: K
A68: Exit Temperature of Glycol Final state | B68: =(B19-((B19-B57)*EXP((-B63*B25)/(B321*Properties!J2)))) -> 263.5527553 | C68: K
A69: Log mean temperature difference 1 | B69: =(B$57-B65)/(LN((B16-B65)/(B16-B$57))) -> 26.46526705 | C69: K
A70: Log mean temperature difference 2 | B70: =(B$57-B66)/(LN((B17-B66)/(B17-B$57))) -> 22.88754205 | C70: K
A71: Log mean temperature difference 3 | B71: =(B$57-B67)/(LN((B18-B67)/(B18-B$57))) -> 13.08669983 | C71: K
A72: Log mean temperature difference 4 | B72: =(B$57-B68)/(LN((B19-B68)/(B19-B$57))) -> 8.609001357 | C72: K
A73: Heat loss inside coil intial state | B73: =B60*(B$25)*(B69) -> 857.350293 | C73: w
A74: Heat loss inside coil Second state | B74: =B61*(B$25)*(B70) -> 757.7244452 | C74: w
A75: Heat loss inside coil Third state | B75: 374.5834129 | C75: w
A76: Heat loss inside coil Final state | B76: 258.8570886 | C76: w
A77: Heat loss in water initial state | B77: =B40*B$25*(B35-B16) -> 809.1466515 | C77: w
A78: Heat loss in water Second state | B78: =B45*B25*(B41-B17) -> 505.2207019 | C78: w
A79: Heat loss in water Third state | B79: =B50*B25*(B46-B18) -> 206.9748064 | C79: w
A80: Heat loss in water Final state | B80: =B55*B25*(B51-B19) -> 198.0444652 | C80: w
A81: Heat loss comparison 1 | B81: =B73-B77 -> 48.20364155 | C81: w
A82: Heat loss comparison 2 | B82: =B74-B78 -> 252.5037433 | C82: w
A83: Heat loss comparison 3 | B83: =B75-B79 -> 167.6086065 | C83: w
A84: Heat loss comparison 4 | B84: =B76-B80 -> 60.8126234 | C84: w
A86: Total heat loss adding all the coils initial state | B86: =B73*B$23 -> 27435.20938 | C86: w
A87: Total heat loss adding all the coils second state | B87: =B74*B$23 -> 24247.18225 | C87: w
A88: Total heat loss adding all the coils third state | B88: 11986.66921 | C88: w
A89: Total heat loss adding all the coils Final state | B89: 8283.426834 | C89: w
A91: Energy required to lower the water temperature by 5 degrees | B91: =(B$9*(Properties!F$2)*(5))*1000 -> 28682852.96 | C91: J
A92: Energy required to lower the water temperature by 8 degrees | B92: =(B$9*(Properties!F$2)*(8))*1000 -> 45892564.73 | C92: J
A93: Energy required to lower the water temperature by 7 degrees | B93: =(B$9*(Properties!F$2)*(7))*1000 -> 40155994.14 | C93: J
A94: Energy required to freeze the water at 0 degrees | B94: =B11*1000 -> 455784192 | C94: J
A95: Require time in order to finish the Initial state | B95: =(B91/B86)/3600 -> 0.29041 | C95: Hrs
A96: Require time in order to finish the Second state | B96: =(B92/B87)/3600 -> 0.5257491167 | C96: Hrs
A97: Require time in order to finish the Third state | B97: 0.9305706713 | C97: Hrs
A98: Require time in order to finish the Final state | B98: 15.28434095 | C98: Hrs
A99: Maximum amount of time | B99: =B13 -> 156 | C99: Hrs
A100: Time required to freeze the water by adding the time calculations | B100: =B95+B96+B97+B98 -> 17.03107074 | C100: Hrs
A102: Chiller Selection
A103: Power needed to lower the temeperature of glycol | B103: =B31*(Properties!J2)*('Storage Tank'!B65-'Storage Tank'!B34) -> 27435.20938 | C103: w
A105: Pump Selection
A106: Reynolds number on the coil before separation | B106: =((Properties!J3)*('Storage Tank'!B15)*('Storage Tank'!B20))/(Properties!J4) -> 7799.240471
A107: Friction Factor on bigger coil | B107: =IF(B106>2300,(-2*(LOG((0.0000015/(3.7065*('Storage Tank'!B$20)))-((5.0452/'Storage Tank'!B106)*(LOG((1/2.8257)*((0.0000015/'Storage Tank'!B$20)^1.1098)+(5.8506/((('Storage Tank'!B106)^0.8981)))))))))^-2,64/B106) -> 0.03302357588
A108: Length on bigger coil | B108: 1.2 | C108: m
A109: Frictional loss on bigger coil | B109: =((B107)*(B108)/(B20))*(((B15)^2)/(2*9.81)) -> 0.3635623033 | C109: m
A110: Frictional loss on one small coil | B110: =(((B287)*(B22))/(B21))*(((B239)^2)/(2*9.81)) -> 0.5761420712 | C110: m
A111: Frictional loss on all small coils | B111: =B110*B23 -> 18.43654628 | C111: m
A112: Sum of all frictional losses | B112: =B109+B111 -> 18.80010858 | C112: m
A113: Minor Losses on bigger coil
A114: Ball Valve K | B114: 0.05
A115: 90 degree elbow | B115: 0.31
A116: Minor loss on bigger coil calculation | B116: =(B114+B115)*(((B15)^2)/(2*9.81)) -> 0.1651376147 | C116: m
A117: Minor losses on small coil
A118: Sudden Contraction | B118: =(0.5-(0.167*(B20/B21)-0.125*((B20/B21)^2)-0.208*((B20/B21)^3))) -> 2.575405093
A119: Sudden Expansion | B119: =(((B20/B21)^2)-1)^2 -> 11.15745563
A120: 180 elbows | B120: 0.3
A121: # of elbows | B121: =INT((B22/B24)-1) -> 9
A122: Minor loss on small coil | B122: =(B118+B119+(B121*B120))*((B239)^2)/(2*(9.81)) -> 0.1386729565 | C122: m
A123: Minor loss on all small coils | B123: =B122*B23 -> 4.437534607 | C123: m
A124: Sum of all losses (Head loss) | B124: =B112+B116+B123 -> 23.4027808 | C124: m
A125: Output power required by a pump | B125: =B31*9.81*B124 -> 1499.754518 | C125: w
A126: Volume flow rate in gal/min | B126: =(B32/(3.785411784*10^-3))*60 -> 93.36632846 | C126: gal/min
A127: Head loss in ft | B127: =B124/(3.048*10^-1) -> 76.78077692 | C127: ft
A129: Post analysis in the process (2nd system)
A131: Initial Temperature of glycol in the air conditioner | B131: 265 | C131: K
A133: Diameter of tube | B133: =B20 -> 0.05 | C133: m
A135: Velocity inside the tube | B135: =B15 -> 3 | C135: m/s
A136: Power needed in order to melt all the ice | B136: =((B11*1000)/(12*3600)) -> 10550.56 | C136: w
A137: Temperature of air | B137: =20+273 -> 293 | C137: K
A138: Velocity of air | B138: =B160 -> 2 | C138: m/s
A139: Mass flow rate of glycol | B139: =(Properties!J3)*'Storage Tank'!B135*((3.1416*(('Storage Tank'!B133)^2))/4) -> 6.5325645 | C139: kg/s
A143: Inside analysis
A144: Reynolds number | B144: =B135*B133*(Properties!J3/Properties!J4) -> 7799.240471
A145: Nusselt Number on the inside | B145: =IF(B144<2300,3.66,(((B107/8)*(B144-1000))*(Properties!J$5))/(1+(12.7*(('Storage Tank'!B107/8)^0.5)*((Properties!J$5)^(2/3)-1)))) -> 291.6059753
A146: Heat transfer coefficient on the inside | B146: =(Properties!J6/'Storage Tank'!B133)*'Storage Tank'!B145 -> 1411.372921 | C146: w/m^2-K
A154: These calculations are for the A/C unit
A155: Effectiveness NTU-Method
A156: Post analysis in the process
A157: Mass flow rate of glycol | B157: =B139 -> 6.5325645 | C157: kg/s
A158: Side length of the frontal area | B158: =1.7 -> 1.7 | C158: m
A159: Frontal area of the heat exchanger | B159: =B158^2 -> 2.89 | C159: m^2
A160: Velocity of air | B160: 2 | C160: m/s
A161: Mass flow rate of air | B161: =B159*B160*Properties!N2 -> 6.95912 | C161: kg/s
A162: Capacitance of glycol | B162: =Properties!J2*'Storage Tank'!B157 -> 14985.70296
A163: Capacitance of air | B163: =B161*Properties!N6 -> 7007.83384
A164: Capacity Ratio | B164: =IF(B163<B162,(B163/B162),B162/B163) -> 0.467634642
A165: Qmax | B165: =B163*(B137-B131) -> 196219.3475 | C165: w
A166: Effectiveness (E) | B166: =B136/B165 -> 0.05376921355
A167: Hydraulic Diameter | B167: =((4*(B159))/(4*B160)) -> 1.445
A168: Reynolds Number in the air side | B168: =(('Storage Tank'!B160)*B167)/(Properties!N4) -> 190633.2454
A169: Nusselt Number | B169: =(0.3+((0.62*((B168)^0.5)*(Properties!N3))/((1+(0.4/Properties!N3)^(2/3))^(1/4)))*((1+(('Storage Tank'!B168/282000)^(5/8)))^(4/5))) -> 276.7627034
A170: Heat transfer coefficient | B170: =(Properties!N5/'Storage Tank'!B133)*'Storage Tank'!B169 -> 139.1562872
A171: Number of transfer units NTU | B171: =(-LN(B164*LN(1-B166)+1)/B164) -> 0.05599555666
A172: Surface area on the tube | B172: =(B171*B163)/B170 -> 2.819905335 | C172: m^2
A173: Length of the tube | B173: =B172/(3.1416*B133) -> 17.95203295 | C173: m
A174: Exit temperature of glycol | B174: =B131+(B175/B162) -> 265.7040417 | C174: K
A175: Heat transfer | B175: =B166*B165 -> 10550.56 | C175: w
A176: # of tube turns | B176: =B173/B158 -> 10.56001938
A177: St or separation between each turn | B177: =(B158/(B176/2))-0.05 -> 0.2719691061 | C177: m
A179: Pump Selection # 2
A180: Friction Factor | B180: =B107 -> 0.03302357588
A181: Frictional Loss | B181: =(((B180)*(B173))/(B133))*(((B135)^2)/(2*9.81)) -> 5.438902039 | C181: m
A182: Minor Losses
A183: # 180 elbow | B183: =INT(B176) -> 10
A184: 180 elbow k loss | B184: 0.3
A185: ball valve | B185: 0.05
A186: Minor Loss | B186: =((B183*B184)+(2*B185))*((B135^2)/(2*9.81)) -> 1.422018349 | C186: m
A187: Sum or all loses | B187: =B181+B186 -> 6.860920388 | C187: m
A188: Work output pump needed | B188: =B157*(9.81)*(B187) -> 439.6783627 | C188: w
A190: Total Tank Volume | B190: =B10+B29 -> 1.677671114 | C190: m^3
A191: Tank width | B191: =B21*B23+(0.05*B23) -> 2.368 | C191: m
A192: Tank Height | B192: =B190/(B191*B193) -> 0.5903966477 | C192: m
A193: Tank Length | B193: =B24 -> 1.2 | C193: m
A194: St of small coils | B194: =B192/(B22/B24) -> 0.05449815209
A196: Tank Insulation
A197: Surface are of the tank | B197: =(2*B193*B191)+(2*B192*B191)+(2*B193*B192) -> 9.896270478 | C197: m^2
A198: Insulation Thickness 1 | B198: 0.02 | C198: m
A199: Insulation Thickness 2 | B199: 0.2 | C199: m
A200: Insulation Thickness 3 | B200: 0.3 | C200: m
A201: Resistance on the insulation | B201: =(B198)/(B204*B197)+((B199)/((B205)*(B197)))+((B200)/(B206*B197)) -> 127.7063641
A202: Heat transfer through the insulation | B202: =(20)/B201 -> 0.1566092665 | C202: w
A203: Insulator Aluminum foil & polyurethane foam
A204: Thermal conductivity aluminum foil | B204: 1.7e-05 | C204: w/m k
A205: Thermal conductivity polyurethane foam | B205: 0.0023 | C205: w/m k
A206: Thermal conductivity concrete | B206: 0.77 | C206: w/m k
A208: Cost Analysis
A209: Length of small coils (0.05)
A210: Length of large tubes (0.1) | B210: =B22*B23 -> 416 | C210: m | D210: Total cost of small coils | E210: =B210*B217 -> 3440.32
A211: Diameter of small coils | B211: =B108+B173 -> 19.15203295 | C211: m | D211: Total cost of large coils | E211: =B211*B218 -> 344.736593
A212: Diameter of large coils | B212: 0.05 | C212: m | D212: Total cost | E212: =E210+E211+B219+B220+B221+B223+B222+B224 -> 5110.056593
A213: Volume of aluminum foil | B213: 0.1 | C213: m
A214: Volume of polyurethane foam | B214: =B197*B198 -> 0.1979254096 | C214: m^3 | D214: 3-ton air conditioner price | E214: 3200
A215: Volume of concrete | B215: =B197*B199 -> 1.979254096 | C215: m^4 | D215: Difference in price | E215: =E212-E214 -> 1910.056593
A216: Cost of of small coils | B216: =B197*B200 -> 2.968881143 | C216: m^5
A217: Cost of large coils | B217: 8.27 | C217: $/m
A218: Chiller | B218: 18 | C218: $/m
A219: Tank material | B219: 350 | C219: $
A220: Aluminum foil | B220: 75 | C220: $
A221: Polyurethane foam | B221: 100 | C221: $
A222: Pumps | B222: 300 | C222: $
A223: Ball valves (3) | B223: 200 | C223: $
B224: 300 | C224: $
A225: Operating Cost
A227: On-Peak hrs
... 107 more rows

Sheet Properties
A1: Properties of Water at 0 | E1: Properties of water from 25 to 0 | I1: Properties of Glycol | M1: Properties of air
A2: Latent heat of Fusion of water | B2: 333.7 | C2: KJ/Kg | E2: Cp of water ranging from 0 to 26.66 C | F2: 4.2 | G2: KJ/KgK | I2: Cp of Ethyene Glycol | J2: 2294 | K2: J/KgK | M2: Density of air | N2: 1.204 | O2: kg/m^3 | P2: at 20
A3: Density of ice | B3: 917 | C3: Kg/m^3 | E3: Pr of water @ 10 | F3: 9.45 | I3: Density of glycol room temp | J3: 1109 | K3: kg/m^3 | M3: Pr | N3: 0.7309
A4: Pr of water at 0 | B4: 13.5 | E4: B volume expansion @ 10 | F4: =0.733*10^-3 -> 0.000733 | G4: 1/k | I4: Dynamic Viscosity | J4: 0.021329 | K4: kg/m s | M4: Kinematic Viscocity | N4: =1.516*10^-5 -> 1.516e-05 | O4: m^2/s
A5: B volume expansion water at 0 | B5: =-0.068*10^-3 -> -6.8e-05 | C5: 1/k | E5: Dynamic viscosity @ 10 | F5: =1.307*10^-3 -> 0.001307 | G5: kg/m*s | I5: Pr of Glycol | J5: =615 -> 615 | M5: Thermal conductivity | N5: 0.02514 | O5: w/m*K
A6: Dynamic viscosity at 0 | B6: =1.792*10^-3 -> 0.001792 | C6: kg/m*s | E6: Thermal conductivity @ 10 | F6: 0.58 | G6: w/m*k | I6: Thermal conductivity | J6: 0.242 | K6: w/m*k | M6: Cp | N6: 1007 | O6: J/kg*K
A7: Thermal conductivity at 0 | B7: 0.561 | C7: w/m*k | E7: Pr of water @ 15 | F7: 8.09
E8: B volume of expansion @ 15 | F8: =0.138*10^-3 -> 0.000138 | G8: 1/k
E9: Dynamic viscosity @ 15 | F9: =1.138*10^-3 -> 0.001138 | G9: kg/m*s
E10: Thermal conductivity @ 15 | F10: 0.589 | G10: w/m*k
E11: Pr of water @ 5 | F11: 11.2
E12: B volume expansion @ 5 | F12: 1.5e-05 | G12: 1/k
E13: Dynamic viscosity @ 5 | F13: 0.001519 | G13: kg/m*s
E14: Thermal conductivity @ 5 | F14: 0.571 | G14: w/m*k
E15: Pr of water @ 0 | F15: 13.5
E16: B volume expansion @ 0 | F16: -6.8e-05 | G16: 1/k
E17: Dynamic viscosity @ 0 | F17: 0.001792 | G17: kg/m*s
E18: Thermal conductivity @ 0 | F18: 0.561 | G18: w/m*k

Sheet Hoja3
